[Event "*** Titled Tuesday Blitz"]
[Site "Chess.com"]
[Date "2021.04.20"]
[Round "2"]
[White "Zkid"]
[Black "Anna_ChessMate"]
[Result "1-0"]
[WhiteElo "2823"]
[BlackElo "2549"]
[TimeControl "180+1"]
[EndTime "10:18:08 PDT"]
[Termination "Zkid won by resignation"]

1. d4 {[%clk 0:03:00.6]} 1... d5 {[%clk 0:02:59.9]} 2. c4 {[%clk 0:02:58]} 2...
c6 {[%clk 0:03:00.5]} 3. Nf3 {[%clk 0:02:57.1]} 3... Nf6 {[%clk 0:03:01.1]} 4.
e3 {[%clk 0:02:55.7]} 4... Bg4 {[%clk 0:03:00.5]} 5. Nc3 {[%clk 0:02:54.6]} 5...
e6 {[%clk 0:02:59]} 6. h3 {[%clk 0:02:54.9]} 6... Bxf3 {[%clk 0:02:58.9]} 7.
Qxf3 {[%clk 0:02:55.5]} 7... Nbd7 {[%clk 0:02:59.4]} 8. Bd3 {[%clk 0:02:53.1]}
8... Bb4 {[%clk 0:02:59.6]} 9. O-O {[%clk 0:02:52.3]} 9... O-O {[%clk
0:02:59.9]} 10. Qd1 {[%clk 0:02:51]} 10... e5 {[%clk 0:02:51.5]} 11. cxd5 {[%clk
0:02:42.5]} 11... exd4 {[%clk 0:02:31.8]} 12. dxc6 {[%clk 0:02:36.5]} 12... dxc3
{[%clk 0:02:13.9]} 13. cxd7 {[%clk 0:02:29.4]} 13... Qxd7 {[%clk 0:02:10.9]} 14.
bxc3 {[%clk 0:02:23]} 14... Bxc3 {[%clk 0:02:03.3]} 15. Rb1 {[%clk 0:02:22.5]}
15... Rac8 {[%clk 0:01:58.6]} 16. Qe2 {[%clk 0:02:04.8]} 16... Rfd8 {[%clk
0:01:53]} 17. Rd1 {[%clk 0:02:04]} 17... Qe7 {[%clk 0:01:44.9]} 18. Rb3 {[%clk
0:01:44.8]} 18... Be5 {[%clk 0:01:41.8]} 19. Ba3 {[%clk 0:01:36.7]} 19... Bd6
{[%clk 0:01:33]} 20. Bb2 {[%clk 0:01:33.5]} 20... b6 {[%clk 0:01:21.9]} 21. Bf5
{[%clk 0:01:27.1]} 21... Rc5 {[%clk 0:01:15.4]} 22. Bb1 {[%clk 0:01:15]} 22...
Rcc8 {[%clk 0:00:13.9]} 23. Rbd3 {[%clk 0:01:06.6]} 23... Bc7 {[%clk 0:00:09.8]}
24. Qf3 {[%clk 0:01:04]} 24... Rxd3 {[%clk 0:00:08.8]} 25. Bxd3 {[%clk
0:01:01.6]} 25... Be5 {[%clk 0:00:08.6]} 26. Qf5 {[%clk 0:00:49.6]} 26... Re8
{[%clk 0:00:04.9]} 27. Bc1 {[%clk 0:00:27.8]} 27... g6 {[%clk 0:00:05]} 28. Qf3
{[%clk 0:00:27.1]} 28... Nd7 {[%clk 0:00:05.1]} 29. Bc4 {[%clk 0:00:26.3]} 29...
Nc5 {[%clk 0:00:04.7]} 30. Ba3 {[%clk 0:00:25.1]} 30... Kg7 {[%clk 0:00:03.2]}
31. Bxc5 {[%clk 0:00:24]} 31... bxc5 {[%clk 0:00:04.1]} 32. Rb1 {[%clk
0:00:19.6]} 32... Rd8 {[%clk 0:00:02.6]} 33. Rb7 {[%clk 0:00:17.8]} 33... Rd7
{[%clk 0:00:02.2]} 34. Rxd7 {[%clk 0:00:17.5]} 34... Qxd7 {[%clk 0:00:03.1]} 35.
g3 {[%clk 0:00:18.1]} 35... Bf6 {[%clk 0:00:02.7]} 36. Kg2 {[%clk 0:00:17.8]}
36... Qe7 {[%clk 0:00:03.1]} 37. Qd5 {[%clk 0:00:17.3]} 37... h5 {[%clk
0:00:03.4]} 38. h4 {[%clk 0:00:16.8]} 38... Qc7 {[%clk 0:00:03.6]} 39. a4 {[%clk
0:00:16.8]} 39... Qe7 {[%clk 0:00:03.8]} 40. a5 {[%clk 0:00:17.1]} 40... Qc7
{[%clk 0:00:04.3]} 41. a6 {[%clk 0:00:17]} 41... Qe7 {[%clk 0:00:04.7]} 42. Qc6
{[%clk 0:00:16.9]} 42... Qe5 {[%clk 0:00:04]} 43. Qb7 {[%clk 0:00:15.1]} 43...
Qe7 {[%clk 0:00:04.6]} 44. f4 {[%clk 0:00:15.5]} 44... Kf8 {[%clk 0:00:04.2]}
45. e4 {[%clk 0:00:15.1]} 45... Bd4 {[%clk 0:00:02.7]} 46. e5 {[%clk 0:00:15]}
46... Ke8 {[%clk 0:00:02.5]} 47. Qc8+ {[%clk 0:00:14.1]} 47... Qd8 {[%clk
0:00:02.5]} 48. Bxf7+ {[%clk 0:00:13.8]} 48... Ke7 {[%clk 0:00:02.7]} 49. Qxd8+
{[%clk 0:00:13.4]} 49... Kxd8 {[%clk 0:00:02.9]} 50. Bxg6 {[%clk 0:00:14.3]}
50... Kc7 {[%clk 0:00:03.3]} 51. Bxh5 {[%clk 0:00:14.6]} 51... c4 {[%clk
0:00:04.1]} 52. Be2 {[%clk 0:00:14.3]} 52... c3 {[%clk 0:00:04.3]} 53. Bd3
{[%clk 0:00:14.9]} 53... Kb6 {[%clk 0:00:04.6]} 54. h5 {[%clk 0:00:15]} 54... c2
{[%clk 0:00:03.8]} 55. Bxc2 {[%clk 0:00:14.8]} 55... Bc5 {[%clk 0:00:04.2]} 56.
h6 {[%clk 0:00:15.1]} 56... Bf8 {[%clk 0:00:05.1]} 57. h7 {[%clk 0:00:15.6]}
57... Bg7 {[%clk 0:00:05.8]} 58. e6 {[%clk 0:00:16.1]} 1-0

[Event "*** Titled Tuesday Blitz"]
[Site "Chess.com"]
[Date "2021.04.20"]
[Round "2"]
[White "RzayevB"]
[Black "Arystanner"]
[Result "0-1"]
[WhiteElo "2527"]
[BlackElo "2811"]
[TimeControl "180+1"]
[EndTime "10:18:11 PDT"]
[Termination "Arystanner won by resignation"]

1. e4 {[%clk 0:03:00.2]} 1... c5 {[%clk 0:02:56.9]} 2. Nf3 {[%clk 0:03:00.1]}
2... e6 {[%clk 0:02:57.4]} 3. g3 {[%clk 0:02:59.3]} 3... d5 {[%clk 0:02:56.7]}
4. exd5 {[%clk 0:02:59]} 4... exd5 {[%clk 0:02:57.6]} 5. d4 {[%clk 0:02:58.4]}
5... Nf6 {[%clk 0:02:57.6]} 6. Bg2 {[%clk 0:02:58]} 6... Bd6 {[%clk 0:02:58]} 7.
O-O {[%clk 0:02:57.7]} 7... O-O {[%clk 0:02:58.2]} 8. dxc5 {[%clk 0:02:55.7]}
8... Bxc5 {[%clk 0:02:58.5]} 9. Bg5 {[%clk 0:02:55.7]} 9... Nc6 {[%clk
0:02:55.3]} 10. Nc3 {[%clk 0:02:53.1]} 10... Be6 {[%clk 0:02:53]} 11. Bxf6
{[%clk 0:02:48.3]} 11... Qxf6 {[%clk 0:02:52.2]} 12. Nxd5 {[%clk 0:02:47.4]}
12... Qxb2 {[%clk 0:02:48.3]} 13. Nc7 {[%clk 0:02:41.5]} 13... Rad8 {[%clk
0:02:45.8]} 14. Qb1 {[%clk 0:02:41.5]} 14... Qxb1 {[%clk 0:02:38.7]} 15. Rfxb1
{[%clk 0:02:36.8]} 15... Bc8 {[%clk 0:02:38.2]} 16. a4 {[%clk 0:02:33.1]} 16...
a6 {[%clk 0:02:33.9]} 17. Ng5 {[%clk 0:02:18.7]} 17... Rd7 {[%clk 0:01:56.8]}
18. Nxa6 {[%clk 0:02:13.2]} 18... Bd4 {[%clk 0:01:38]} 19. Ra3 {[%clk 0:02:00]}
19... h6 {[%clk 0:01:37.5]} 20. Nh3 {[%clk 0:01:47.9]} 20... bxa6 {[%clk
0:01:37.3]} 21. Bxc6 {[%clk 0:01:46.6]} 21... Rc7 {[%clk 0:01:37.8]} 22. Bg2
{[%clk 0:01:41.9]} 22... Rxc2 {[%clk 0:01:37.2]} 23. Rd3 {[%clk 0:01:18.4]}
23... Bc5 {[%clk 0:01:36.2]} 24. Rf1 {[%clk 0:01:12.1]} 24... a5 {[%clk
0:01:25.9]} 25. Rdd1 {[%clk 0:01:02.9]} 25... Re8 {[%clk 0:01:12.1]} 26. Rc1
{[%clk 0:01:01.5]} 26... Ree2 {[%clk 0:01:07.8]} 27. Rxc2 {[%clk 0:00:54.9]}
27... Rxc2 {[%clk 0:01:08.7]} 28. Rd1 {[%clk 0:00:55.2]} 28... Bb6 {[%clk
0:00:31.1]} 29. Rb1 {[%clk 0:00:48]} 29... Ba7 {[%clk 0:00:23.3]} 30. Rd1 {[%clk
0:00:45.5]} 30... g6 {[%clk 0:00:21.5]} 31. Be4 {[%clk 0:00:40.9]} 31... Rc4
{[%clk 0:00:16]} 32. Rd8+ {[%clk 0:00:39.8]} 32... Kg7 {[%clk 0:00:15.8]} 33.
Bd3 {[%clk 0:00:40.2]} 33... Rc1+ {[%clk 0:00:15.2]} 34. Kg2 {[%clk 0:00:33.6]}
34... Bb7+ {[%clk 0:00:14.9]} 35. f3 {[%clk 0:00:33.8]} 35... Bc6 {[%clk
0:00:15.5]} 36. Nf4 {[%clk 0:00:27.4]} 36... Rg1+ {[%clk 0:00:14.2]} 37. Kh3
{[%clk 0:00:26.1]} 37... Bxf3 {[%clk 0:00:14.8]} 38. Rd7 {[%clk 0:00:22.4]}
38... Be3 {[%clk 0:00:14.9]} 39. Bc4 {[%clk 0:00:20.6]} 39... h5 {[%clk
0:00:12.2]} 40. Rxf7+ {[%clk 0:00:19.4]} 40... Kh6 {[%clk 0:00:12.8]} 41. Rf6
{[%clk 0:00:16.1]} 41... Bg4+ {[%clk 0:00:12.2]} 42. Kh4 {[%clk 0:00:16.3]}
42... Bf5 {[%clk 0:00:07.6]} 43. Bd3 {[%clk 0:00:12]} 43... Bxf4 {[%clk
0:00:08]} 44. Bxf5 {[%clk 0:00:11.6]} 44... Bg5+ {[%clk 0:00:07.9]} 45. Kh3
{[%clk 0:00:12]} 45... Bxf6 {[%clk 0:00:08.5]} 46. Be4 {[%clk 0:00:12.5]} 46...
Re1 {[%clk 0:00:08.6]} 47. Bc6 {[%clk 0:00:12.6]} 47... Ra1 {[%clk 0:00:09.3]}
48. Bb5 {[%clk 0:00:04.5]} 48... g5 {[%clk 0:00:08.9]} 49. g4 {[%clk 0:00:03]}
49... h4 {[%clk 0:00:08.2]} 0-1

[Event "*** Titled Tuesday Blitz"]
[Site "Chess.com"]
[Date "2021.04.20"]
[Round "2"]
[White "SmoothAsAHedgehog"]
[Black "kreonx"]
[Result "1-0"]
[WhiteElo "2678"]
[BlackElo "2332"]
[TimeControl "180+1"]
[EndTime "10:18:12 PDT"]
[Termination "SmoothAsAHedgehog won by resignation"]

1. e4 {[%clk 0:02:39.3]} 1... c6 {[%clk 0:02:57.9]} 2. d4 {[%clk 0:02:36.5]}
2... d5 {[%clk 0:02:58.8]} 3. Nd2 {[%clk 0:02:36]} 3... dxe4 {[%clk 0:02:58.7]}
4. Nxe4 {[%clk 0:02:36.9]} 4... Nf6 {[%clk 0:02:59.1]} 5. Ng3 {[%clk 0:02:32.5]}
5... g6 {[%clk 0:02:58.2]} 6. Nf3 {[%clk 0:02:31.6]} 6... Bg7 {[%clk 0:02:58.1]}
7. Be2 {[%clk 0:02:28.6]} 7... Bg4 {[%clk 0:02:57.1]} 8. O-O {[%clk 0:02:27.8]}
8... Nh5 {[%clk 0:02:45.2]} 9. Nxh5 {[%clk 0:02:08.7]} 9... Bxh5 {[%clk
0:02:46.1]} 10. c3 {[%clk 0:02:08]} 10... O-O {[%clk 0:02:33.3]} 11. Re1 {[%clk
0:02:01.6]} 11... e6 {[%clk 0:02:19.1]} 12. Bg5 {[%clk 0:01:56.5]} 12... Bf6
{[%clk 0:02:14.3]} 13. Bxf6 {[%clk 0:01:44.4]} 13... Qxf6 {[%clk 0:02:15.2]} 14.
Ne5 {[%clk 0:01:44.5]} 14... Bxe2 {[%clk 0:02:13.9]} 15. Qxe2 {[%clk 0:01:45.4]}
15... Rd8 {[%clk 0:02:03.8]} 16. Rad1 {[%clk 0:01:44.6]} 16... Nd7 {[%clk
0:02:03.4]} 17. Ng4 {[%clk 0:01:36.7]} 17... Qg5 {[%clk 0:01:53.5]} 18. Rd3
{[%clk 0:01:29.8]} 18... h5 {[%clk 0:01:52.8]} 19. Ne3 {[%clk 0:01:28.3]} 19...
e5 {[%clk 0:01:43.5]} 20. Red1 {[%clk 0:00:40.9]} 20... exd4 {[%clk 0:01:41.3]}
21. Rxd4 {[%clk 0:00:41.3]} 21... Nf8 {[%clk 0:01:22.5]} 22. h4 {[%clk
0:00:34.6]} 22... Qe7 {[%clk 0:01:06]} 23. Qf3 {[%clk 0:00:18.4]} 23... Rxd4
{[%clk 0:01:01.3]} 24. Rxd4 {[%clk 0:00:19.3]} 24... Rd8 {[%clk 0:00:51.6]} 25.
Re4 {[%clk 0:00:06.8]} 25... Qd7 {[%clk 0:00:37.2]} 26. g3 {[%clk 0:00:05.8]}
26... Kg7 {[%clk 0:00:25.3]} 27. Rd4 {[%clk 0:00:05]} 27... Qe7 {[%clk
0:00:24.1]} 28. Rxd8 {[%clk 0:00:03.7]} 28... Qxd8 {[%clk 0:00:24.5]} 29. Qe2
{[%clk 0:00:04]} 29... Ne6 {[%clk 0:00:23.6]} 30. Nc4 {[%clk 0:00:03.7]} 30...
Qd5 {[%clk 0:00:23.3]} 31. Qe5+ {[%clk 0:00:03.5]} 31... Qxe5 {[%clk 0:00:23.8]}
32. Nxe5 {[%clk 0:00:04.4]} 32... Kf6 {[%clk 0:00:21.8]} 33. Nd3 {[%clk
0:00:04.8]} 33... Kf5 {[%clk 0:00:19.7]} 34. f3 {[%clk 0:00:05.2]} 34... g5
{[%clk 0:00:19.6]} 35. hxg5 {[%clk 0:00:05.6]} 35... Nxg5 {[%clk 0:00:20.1]} 36.
Kf2 {[%clk 0:00:06.2]} 36... b6 {[%clk 0:00:15]} 37. Ke3 {[%clk 0:00:06.6]}
37... Ne6 {[%clk 0:00:13.3]} 38. Nb4 {[%clk 0:00:06.6]} 38... Nd8 {[%clk
0:00:10.4]} 39. a4 {[%clk 0:00:06.3]} 39... Ke5 {[%clk 0:00:10.1]} 40. Nd3+
{[%clk 0:00:06.1]} 40... Kf5 {[%clk 0:00:09]} 41. Nf4 {[%clk 0:00:06.7]} 41...
Kg5 {[%clk 0:00:07.7]} 42. Ke4 {[%clk 0:00:07.3]} 42... Ne6 {[%clk 0:00:06.3]}
43. Nxe6+ {[%clk 0:00:05.8]} 43... fxe6 {[%clk 0:00:07.2]} 44. Ke5 {[%clk
0:00:06.2]} 44... h4 {[%clk 0:00:06.1]} 45. gxh4+ {[%clk 0:00:05.8]} 45... Kxh4
{[%clk 0:00:07]} 46. Kxe6 {[%clk 0:00:05.1]} 46... Kg3 {[%clk 0:00:07.9]} 47.
Kd6 {[%clk 0:00:05.7]} 47... c5 {[%clk 0:00:06.6]} 48. Kc6 {[%clk 0:00:06.1]}
48... Kxf3 {[%clk 0:00:06]} 49. Kb7 {[%clk 0:00:06.5]} 49... b5 {[%clk
0:00:04.4]} 50. axb5 {[%clk 0:00:05.3]} 50... Ke3 {[%clk 0:00:03.4]} 51. Kxa7
{[%clk 0:00:05.6]} 1-0

[Event "*** Titled Tuesday Blitz"]
[Site "Chess.com"]
[Date "2021.04.20"]
[Round "2"]
[White "deribas12345"]
[Black "gumimis"]
[Result "1-0"]
[WhiteElo "2528"]
[BlackElo "2316"]
[TimeControl "180+1"]
[EndTime "10:18:12 PDT"]
[Termination "deribas12345 won on time"]

1. d4 {[%clk 0:03:00.9]} 1... g6 {[%clk 0:02:56.6]} 2. c4 {[%clk 0:03:00.9]}
2... Bg7 {[%clk 0:02:57.5]} 3. e4 {[%clk 0:02:57.2]} 3... d6 {[%clk 0:02:55.8]}
4. Nc3 {[%clk 0:02:57.3]} 4... Nd7 {[%clk 0:02:56.2]} 5. Nge2 {[%clk 0:02:57.4]}
5... Ngf6 {[%clk 0:02:55.6]} 6. Ng3 {[%clk 0:02:55.4]} 6... O-O {[%clk 0:02:56]}
7. Be2 {[%clk 0:02:54.4]} 7... c5 {[%clk 0:02:55.4]} 8. d5 {[%clk 0:02:54.2]}
8... h5 {[%clk 0:02:52.7]} 9. O-O {[%clk 0:02:53.2]} 9... h4 {[%clk 0:02:48.5]}
10. Nh1 {[%clk 0:02:50.6]} 10... h3 {[%clk 0:02:48.9]} 11. g4 {[%clk 0:02:46.8]}
11... Ne5 {[%clk 0:02:29.8]} 12. f3 {[%clk 0:02:40.1]} 12... e6 {[%clk
0:02:20.2]} 13. Nf2 {[%clk 0:02:37.4]} 13... exd5 {[%clk 0:02:19.7]} 14. cxd5
{[%clk 0:02:38.3]} 14... Qa5 {[%clk 0:01:56]} 15. Nxh3 {[%clk 0:02:32.7]} 15...
Rb8 {[%clk 0:01:50.2]} 16. a4 {[%clk 0:02:19.8]} 16... a6 {[%clk 0:01:48.5]} 17.
Bg5 {[%clk 0:02:16.1]} 17... Qb4 {[%clk 0:01:44.3]} 18. Qc2 {[%clk 0:02:12.2]}
18... Nc4 {[%clk 0:01:36.7]} 19. b3 {[%clk 0:02:00.8]} 19... Na5 {[%clk
0:01:34.2]} 20. e5 {[%clk 0:01:49]} 20... dxe5 {[%clk 0:01:30.7]} 21. Rab1
{[%clk 0:01:48.2]} 21... e4 {[%clk 0:01:14.8]} 22. Bxf6 {[%clk 0:01:42.7]} 22...
Bxf6 {[%clk 0:00:59]} 23. Nxe4 {[%clk 0:01:41.8]} 23... Bd4+ {[%clk 0:00:55.9]}
24. Kh1 {[%clk 0:01:41.5]} 24... b5 {[%clk 0:00:44.6]} 25. axb5 {[%clk
0:01:37.8]} 25... axb5 {[%clk 0:00:45.5]} 26. Nhg5 {[%clk 0:01:24.1]} 26... Bb7
{[%clk 0:00:43.6]} 27. d6 {[%clk 0:01:08.4]} 27... Rbd8 {[%clk 0:00:40.5]} 28.
Bd3 {[%clk 0:00:57.5]} 28... Bxe4 {[%clk 0:00:37.4]} 29. Nxe4 {[%clk 0:00:44.6]}
29... Nb7 {[%clk 0:00:37.2]} 30. Ng5 {[%clk 0:00:39.2]} 30... Nxd6 {[%clk
0:00:36.5]} 31. Bxg6 {[%clk 0:00:38.8]} 31... Bf6 {[%clk 0:00:20.6]} 32. Nh7
{[%clk 0:00:33.2]} 32... fxg6 {[%clk 0:00:17]} 33. Qxg6+ {[%clk 0:00:32.5]}
33... Bg7 {[%clk 0:00:17.4]} 34. Ng5 {[%clk 0:00:32.7]} 34... Rf6 {[%clk
0:00:14.3]} 35. Qh7+ {[%clk 0:00:32.8]} 35... Kf8 {[%clk 0:00:14.8]} 36. Rbe1
{[%clk 0:00:32.8]} 36... Qxb3 {[%clk 0:00:10.1]} 37. Qh5 {[%clk 0:00:29.2]}
37... Qg8 {[%clk 0:00:09.3]} 38. Nh7+ {[%clk 0:00:26.2]} 38... Qxh7 {[%clk
0:00:10.2]} 39. Qxh7 {[%clk 0:00:26.4]} 39... c4 {[%clk 0:00:10.3]} 40. Re7
{[%clk 0:00:25.1]} 40... Kxe7 {[%clk 0:00:09.5]} 41. Qxg7+ {[%clk 0:00:25.4]}
41... Rf7 {[%clk 0:00:10.1]} 42. Re1+ {[%clk 0:00:25.7]} 42... Kd7 {[%clk
0:00:09.3]} 43. Qd4 {[%clk 0:00:24.1]} 43... b4 {[%clk 0:00:09.1]} 44. Qc5
{[%clk 0:00:19.3]} 44... b3 {[%clk 0:00:08.6]} 45. Rd1 {[%clk 0:00:19.1]} 45...
Ke7 {[%clk 0:00:08.4]} 46. Qe5+ {[%clk 0:00:14]} 46... Kf8 {[%clk 0:00:08.1]}
47. Rxd6 {[%clk 0:00:14.1]} 47... Rxd6 {[%clk 0:00:08.7]} 48. Qxd6+ {[%clk
0:00:15]} 48... Kg8 {[%clk 0:00:08]} 49. Qd8+ {[%clk 0:00:15]} 49... Kg7 {[%clk
0:00:06.5]} 50. Qd4+ {[%clk 0:00:14.9]} 50... Kg8 {[%clk 0:00:06.3]} 51. Qxc4
{[%clk 0:00:15.8]} 51... b2 {[%clk 0:00:06.3]} 52. Qb3 {[%clk 0:00:16]} 52...
Kf8 {[%clk 0:00:02]} 53. Qxb2 {[%clk 0:00:16]} 53... Rb7 {[%clk 0:00:02.7]} 54.
Qxb7 {[%clk 0:00:15.7]} 1-0

[Event "*** Titled Tuesday Blitz"]
[Site "Chess.com"]
[Date "2021.04.20"]
[Round "2"]
[White "AlexSuv"]
[Black "Msb2"]
[Result "0-1"]
[WhiteElo "2581"]
[BlackElo "2904"]
[TimeControl "180+1"]
[EndTime "10:18:14 PDT"]
[Termination "Msb2 won by checkmate"]

1. d4 {[%clk 0:03:00.9]} 1... d5 {[%clk 0:02:57.5]} 2. c4 {[%clk 0:03:01]} 2...
e6 {[%clk 0:02:57.1]} 3. Nc3 {[%clk 0:03:01.3]} 3... Nf6 {[%clk 0:02:56.5]} 4.
cxd5 {[%clk 0:03:01.5]} 4... exd5 {[%clk 0:02:57.4]} 5. Bg5 {[%clk 0:03:01.5]}
5... c6 {[%clk 0:02:58.1]} 6. e3 {[%clk 0:03:02]} 6... h6 {[%clk 0:02:58.7]} 7.
Bh4 {[%clk 0:03:01.8]} 7... Be7 {[%clk 0:02:59.3]} 8. Bd3 {[%clk 0:03:01.8]}
8... O-O {[%clk 0:02:59.9]} 9. Nf3 {[%clk 0:03:00.8]} 9... Ne4 {[%clk
0:02:56.2]} 10. Bxe7 {[%clk 0:02:57.3]} 10... Qxe7 {[%clk 0:02:57.1]} 11. Qc2
{[%clk 0:02:57.2]} 11... Re8 {[%clk 0:02:56.8]} 12. O-O {[%clk 0:02:55.3]} 12...
Nd7 {[%clk 0:02:56.3]} 13. Rae1 {[%clk 0:02:53.8]} 13... Ndf6 {[%clk 0:02:42.3]}
14. Ne5 {[%clk 0:02:51.8]} 14... Nxc3 {[%clk 0:02:26.6]} 15. bxc3 {[%clk
0:02:49.5]} 15... c5 {[%clk 0:02:27]} 16. f3 {[%clk 0:02:35.7]} 16... Be6 {[%clk
0:02:25.3]} 17. Qb2 {[%clk 0:02:31.9]} 17... Rac8 {[%clk 0:02:23.6]} 18. e4
{[%clk 0:02:19.7]} 18... cxd4 {[%clk 0:02:21.5]} 19. cxd4 {[%clk 0:02:20.6]}
19... Red8 {[%clk 0:02:09.1]} 20. Rc1 {[%clk 0:01:58.4]} 20... a6 {[%clk
0:01:47.6]} 21. Qb6 {[%clk 0:01:52.9]} 21... g6 {[%clk 0:00:47.8]} 22. Rxc8
{[%clk 0:01:30.4]} 22... Rxc8 {[%clk 0:00:48.7]} 23. Rb1 {[%clk 0:01:30.5]}
23... Rc7 {[%clk 0:00:48.3]} 24. a4 {[%clk 0:01:26.6]} 24... Kg7 {[%clk
0:00:48.4]} 25. a5 {[%clk 0:01:22.3]} 25... h5 {[%clk 0:00:44.1]} 26. Qb4 {[%clk
0:00:58.4]} 26... Qd8 {[%clk 0:00:36.7]} 27. Rd1 {[%clk 0:00:49.9]} 27... h4
{[%clk 0:00:35.7]} 28. Bb1 {[%clk 0:00:47.1]} 28... Nh5 {[%clk 0:00:34.6]} 29.
Qd2 {[%clk 0:00:39.7]} 29... Qf6 {[%clk 0:00:33.6]} 30. Ba2 {[%clk 0:00:35.6]}
30... Nf4 {[%clk 0:00:33.9]} 31. exd5 {[%clk 0:00:33.7]} 31... Bxd5 {[%clk
0:00:34.8]} 32. Bxd5 {[%clk 0:00:33.3]} 32... Nxd5 {[%clk 0:00:35.7]} 33. Ng4
{[%clk 0:00:33]} 33... Qf4 {[%clk 0:00:33.9]} 34. Qxf4 {[%clk 0:00:29.7]} 34...
Nxf4 {[%clk 0:00:34.8]} 35. g3 {[%clk 0:00:30.6]} 35... hxg3 {[%clk 0:00:31.8]}
36. hxg3 {[%clk 0:00:31.5]} 36... Nd5 {[%clk 0:00:32.5]} 37. Rb1 {[%clk
0:00:31.2]} 37... Nc3 {[%clk 0:00:27.8]} 38. Rb2 {[%clk 0:00:29.7]} 38... Nb5
{[%clk 0:00:27.2]} 39. d5 {[%clk 0:00:29]} 39... Rd7 {[%clk 0:00:26.7]} 40. Ne3
{[%clk 0:00:28.1]} 40... Kf6 {[%clk 0:00:27.3]} 41. Rd2 {[%clk 0:00:25.6]} 41...
Nd6 {[%clk 0:00:24.8]} 42. Rc2 {[%clk 0:00:23.6]} 42... Ke5 {[%clk 0:00:23.1]}
43. Kf2 {[%clk 0:00:23]} 43... g5 {[%clk 0:00:23.5]} 44. Rd2 {[%clk 0:00:18.8]}
44... f5 {[%clk 0:00:23.3]} 45. Rd1 {[%clk 0:00:17.6]} 45... Rc7 {[%clk
0:00:23.3]} 46. Re1 {[%clk 0:00:17.1]} 46... f4 {[%clk 0:00:22.2]} 47. Nc4+
{[%clk 0:00:13.6]} 47... Kxd5 {[%clk 0:00:22.7]} 48. Nb6+ {[%clk 0:00:14.2]}
48... Kd4 {[%clk 0:00:17.1]} 49. Rd1+ {[%clk 0:00:14.7]} 49... Ke5 {[%clk
0:00:17.5]} 50. Rd5+ {[%clk 0:00:11.1]} 50... Ke6 {[%clk 0:00:17.7]} 51. gxf4
{[%clk 0:00:11.6]} 51... gxf4 {[%clk 0:00:17.5]} 52. Rh5 {[%clk 0:00:11.7]}
52... Rc2+ {[%clk 0:00:17.9]} 53. Ke1 {[%clk 0:00:12.2]} 53... Nf5 {[%clk
0:00:18.3]} 54. Rh7 {[%clk 0:00:11.1]} 54... Nd4 {[%clk 0:00:18.5]} 55. Rxb7
{[%clk 0:00:09.3]} 55... Nxf3+ {[%clk 0:00:19]} 56. Kd1 {[%clk 0:00:10]} 56...
Rd2+ {[%clk 0:00:18.6]} 57. Kc1 {[%clk 0:00:10]} 57... Ra2 {[%clk 0:00:19.5]}
58. Nc4 {[%clk 0:00:09.6]} 58... Nd4 {[%clk 0:00:19.2]} 59. Rb6+ {[%clk
0:00:09.8]} 59... Kd5 {[%clk 0:00:19.8]} 60. Rxa6 {[%clk 0:00:10.7]} 60... Kxc4
{[%clk 0:00:19.9]} 61. Rf6 {[%clk 0:00:11.2]} 61... Kd3 {[%clk 0:00:18]} 62.
Rxf4 {[%clk 0:00:10.2]} 62... Ne2+ {[%clk 0:00:18.4]} 63. Kb1 {[%clk 0:00:10.8]}
63... Nc3+ {[%clk 0:00:19.1]} 64. Kc1 {[%clk 0:00:11]} 64... Rc2# {[%clk
0:00:20]} 0-1

[Event "*** Titled Tuesday Blitz"]
[Site "Chess.com"]
[Date "2021.04.20"]
[Round "2"]
[White "Andreikka"]
[Black "LawrenceTrent"]
[Result "1-0"]
[WhiteElo "2868"]
[BlackElo "2568"]
[TimeControl "180+1"]
[EndTime "10:18:14 PDT"]
[Termination "Andreikka won on time"]

1. d4 {[%clk 0:03:00.9]} 1... d5 {[%clk 0:02:55.4]} 2. Nc3 {[%clk 0:03:00.4]}
2... Nf6 {[%clk 0:02:53.6]} 3. Bf4 {[%clk 0:03:00.3]} 3... c5 {[%clk 0:02:45.1]}
4. e3 {[%clk 0:02:59.5]} 4... cxd4 {[%clk 0:02:41.2]} 5. exd4 {[%clk 0:02:59.1]}
5... a6 {[%clk 0:02:41.3]} 6. Nf3 {[%clk 0:02:58.3]} 6... Nc6 {[%clk 0:02:40.1]}
7. Ne5 {[%clk 0:02:55.6]} 7... e6 {[%clk 0:02:40]} 8. g4 {[%clk 0:02:54.9]} 8...
Bb4 {[%clk 0:02:35.6]} 9. Nxc6 {[%clk 0:02:52.3]} 9... bxc6 {[%clk 0:02:35.2]}
10. Bd3 {[%clk 0:02:52.4]} 10... c5 {[%clk 0:02:27.2]} 11. dxc5 {[%clk 0:02:31]}
11... O-O {[%clk 0:02:19.3]} 12. g5 {[%clk 0:02:24]} 12... Nd7 {[%clk 0:02:12]}
13. Bd6 {[%clk 0:02:06]} 13... Qxg5 {[%clk 0:02:05]} 14. Bxf8 {[%clk 0:02:03.4]}
14... Nxf8 {[%clk 0:01:57.8]} 15. a3 {[%clk 0:01:43.9]} 15... Bxc3+ {[%clk
0:01:50.1]} 16. bxc3 {[%clk 0:01:43.3]} 16... Qe5+ {[%clk 0:01:51]} 17. Kf1
{[%clk 0:01:31.1]} 17... Qxc3 {[%clk 0:01:50.1]} 18. Qe1 {[%clk 0:01:23.8]}
18... Qxc5 {[%clk 0:01:39.9]} 19. h4 {[%clk 0:01:23.5]} 19... Bd7 {[%clk
0:01:26.8]} 20. h5 {[%clk 0:01:10.3]} 20... Bb5 {[%clk 0:01:19.6]} 21. Qd2
{[%clk 0:00:50.8]} 21... Qd4 {[%clk 0:01:12.5]} 22. Rb1 {[%clk 0:00:46.7]} 22...
Bxd3+ {[%clk 0:01:11.8]} 23. cxd3 {[%clk 0:00:47.6]} 23... Nd7 {[%clk
0:01:05.8]} 24. Rb4 {[%clk 0:00:44.2]} 24... Qf6 {[%clk 0:00:48.1]} 25. h6
{[%clk 0:00:33.8]} 25... g6 {[%clk 0:00:41.5]} 26. Kg2 {[%clk 0:00:25.8]} 26...
Ne5 {[%clk 0:00:31.6]} 27. Rhb1 {[%clk 0:00:25.7]} 27... Qf3+ {[%clk 0:00:25.3]}
28. Kg1 {[%clk 0:00:26]} 28... Rf8 {[%clk 0:00:23.1]} 29. Qe3 {[%clk 0:00:12.4]}
29... Qxe3 {[%clk 0:00:18.1]} 30. fxe3 {[%clk 0:00:13.3]} 30... Nxd3 {[%clk
0:00:19]} 31. Ra4 {[%clk 0:00:12.5]} 31... Nc5 {[%clk 0:00:18.9]} 32. Ra5 {[%clk
0:00:12.3]} 32... Ne4 {[%clk 0:00:15.7]} 33. Rxa6 {[%clk 0:00:12.5]} 33... g5
{[%clk 0:00:15.9]} 34. Rab6 {[%clk 0:00:11.3]} 34... Re8 {[%clk 0:00:12.6]} 35.
a4 {[%clk 0:00:08.3]} 35... Kf8 {[%clk 0:00:12.6]} 36. a5 {[%clk 0:00:07.9]}
36... Ke7 {[%clk 0:00:11.6]} 37. Rb7+ {[%clk 0:00:05.8]} 37... Kf6 {[%clk
0:00:11.3]} 38. Rf1+ {[%clk 0:00:05]} 38... Ke5 {[%clk 0:00:10.9]} 39. Rbxf7
{[%clk 0:00:05.2]} 39... Ra8 {[%clk 0:00:11.7]} 40. Rxh7 {[%clk 0:00:05.7]}
40... Rxa5 {[%clk 0:00:11.2]} 41. Rg7 {[%clk 0:00:06.4]} 41... Ra8 {[%clk
0:00:09.1]} 42. h7 {[%clk 0:00:06.9]} 42... Rh8 {[%clk 0:00:09.7]} 43. Rff7
{[%clk 0:00:07]} 43... Nf6 {[%clk 0:00:09.8]} 44. Rxg5+ {[%clk 0:00:07.3]} 44...
Kd6 {[%clk 0:00:10]} 45. Rxf6 {[%clk 0:00:07.6]} 45... Rxh7 {[%clk 0:00:10.9]}
46. Kf2 {[%clk 0:00:07.7]} 46... Kc5 {[%clk 0:00:11.8]} 47. Rxe6 {[%clk
0:00:07.7]} 47... Rf7+ {[%clk 0:00:09.3]} 48. Ke2 {[%clk 0:00:07.9]} 48... Ra7
{[%clk 0:00:10.2]} 49. Ree5 {[%clk 0:00:08.2]} 49... Kc4 {[%clk 0:00:11.1]} 50.
Rxd5 {[%clk 0:00:08]} 50... Ra1 {[%clk 0:00:12]} 51. Kf3 {[%clk 0:00:08.5]}
51... Kb3 {[%clk 0:00:12.8]} 52. Rb5+ {[%clk 0:00:08.3]} 52... Ka2 {[%clk
0:00:13.7]} 53. Ra5+ {[%clk 0:00:08.4]} 1-0